fUSD/lending_fUSD_20250104
["ID","MTS","AMOUNT","RATE_DAILY","PERIOD"]
[347645052,1736009437929,-788.45,9.573e-05,2]
[347645054,1736009437941,-500.0,9.573e-05,2]
[347645056,1736009437953,-202.0,9.606e-05,2]
[347645059,1736009437965,-500.0,9.647e-05,2]
[347645061,1736009437977,-500.0,9.647e-05,2]
[347645063,1736009437988,-500.0,9.647e-05,2]
[347645065,1736009438000,-500.0,9.647e-05,2]
[347645068,1736009438012,-500.0,9.647e-05,2]
[347645071,1736009438023,-500.0,9.647e-05,2]
[347645075,1736009438037,-500.0,9.67e-05,2]
[347645078,1736009438048,-500.0,9.67e-05,2]
[347645082,1736009438059,-150.0,9.736e-05,2]
[347645086,1736009438071,-150.0,9.737e-05,2]
[347645090,1736009438082,-150.0,9.739e-05,2]
[347645092,1736009438093,-150.0,9.74e-05,2]
[347645095,1736009438104,-150.0,9.746e-05,2]
[347645097,1736009438115,-150.0,9.748e-05,2]
[347645099,1736009438126,-150.0,9.75e-05,2]
[347645101,1736009438136,-150.0,9.752e-05,2]
[347645103,1736009438147,-150.0,9.753e-05,2]
[347645106,1736009438158,-150.0,9.754e-05,2]
[347645108,1736009438168,-289.29,9.758e-05,2]
[347645110,1736009438180,-150.0,9.76e-05,2]
[347645112,1736009438191,-150.0,9.761e-05,2]
[347645114,1736009438203,-150.0,9.763e-05,2]
[347645116,1736009438213,-150.0,9.769e-05,2]
[347645118,1736009438223,-150.0,9.77e-05,2]
[347645121,1736009438235,-150.0,9.772e-05,2]
[347645123,1736009438248,-150.0,9.772e-05,2]
[347645125,1736009438258,-150.0,9.782e-05,2]
[347645127,1736009438268,-150.0,9.783e-05,2]
[347645129,1736009438278,-150.0,9.783e-05,2]
[347645131,1736009438288,-150.0,9.783e-05,2]
[347645133,1736009438298,-150.0,9.786e-05,2]
[347645135,1736009438308,-150.0,9.786e-05,2]
[347645137,1736009438320,-150.0,9.792e-05,2]
[347645140,1736009438334,-150.0,9.794e-05,2]
[347645142,1736009438346,-150.0,9.795e-05,2]
[347645144,1736009438356,-150.0,9.795e-05,2]
[347645146,1736009438366,-12501.1212,9.8e-05,2]
[347645148,1736009438376,-150.0,9.807e-05,2]
[347645150,1736009438385,-150.0,9.808e-05,2]
[347645152,1736009438395,-1000.0,9.811e-05,2]
[347645154,1736009438405,-150.0,9.82e-05,2]
[347645156,1736009438417,-150.0,9.825e-05,2]
[347645159,1736009438429,-150.0,9.825e-05,2]
[347645161,1736009438441,-150.0,9.826e-05,2]
[347645163,1736009438452,-150.0,9.826e-05,2]
[347645165,1736009438463,-150.0,9.827e-05,2]
[347645167,1736009438474,-150.0,9.831e-05,2]
[347645169,1736009438484,-150.0,9.832e-05,2]
[347645171,1736009438495,-150.0,9.838e-05,2]
[347645173,1736009438505,-150.0,9.838e-05,2]
[347645176,1736009438516,-150.0,9.838e-05,2]
[347645178,1736009438526,-150.0,9.839e-05,2]
[347645180,1736009438537,-150.0,9.84e-05,2]
[347645182,1736009438547,-150.0,9.845e-05,2]
[347645184,1736009438558,-150.0,9.846e-05,2]
[347645186,1736009438568,-500.0,9.847e-05,2]
[347645188,1736009438578,-788.45,9.847e-05,2]
[347645190,1736009438591,-500.0,9.847e-05,2]
[347645192,1736009438604,-150.0,9.851e-05,2]
[347645194,1736009438614,-150.0,9.852e-05,2]
[347645196,1736009438624,-150.0,9.852e-05,2]
[347645199,1736009438635,-150.0,9.852e-05,2]
[347645201,1736009438645,-150.0,9.852e-05,2]
[347645203,1736009438657,-150.0,9.853e-05,2]
[347645205,1736009438667,-150.0,9.853e-05,2]
[347645207,1736009438678,-150.0,9.854e-05,2]
[347645209,1736009438688,-214.031947,9.856e-05,2]
[347645211,1736009438699,-150.0,9.862e-05,2]
[347645213,1736009438709,-150.0,9.863e-05,2]
[347645215,1736009438721,-150.0,9.865e-05,2]
[347645217,1736009438731,-150.0,9.867e-05,2]
[347645220,1736009438742,-150.0,9.873e-05,2]
[347645222,1736009438752,-150.0,9.875e-05,2]
[347645224,1736009438764,-150.0,9.883e-05,2]
[347645226,1736009438774,-150.0,9.884e-05,2]
[347645228,1736009438784,-150.0,9.885e-05,2]
[347645230,1736009438795,-150.0,9.887e-05,2]
[347645232,1736009438806,-150.0,9.89e-05,2]
[347645234,1736009438816,-150.0,9.895e-05,2]
[347645237,1736009438827,-150.0,9.898e-05,2]
[347645239,1736009438838,-150.0,9.898e-05,2]
[347645241,1736009438848,-19992.3469,9.9e-05,2]
[347645243,1736009438858,-1000.0,9.9e-05,2]
[347645245,1736009438869,-150.0,9.902e-05,2]
[347645247,1736009438880,-150.0,9.902e-05,2]
[347645249,1736009438890,-150.0,9.904e-05,2]
[347645251,1736009438901,-150.0,9.91e-05,2]
[347645253,1736009438911,-150.0,9.912e-05,2]
[347645255,1736009438922,-150.0,9.914e-05,2]
[347645258,1736009438933,-150.0,9.921e-05,2]
[347645260,1736009438943,-500.0,9.921e-05,2]
[347645262,1736009438953,-500.0,9.921e-05,2]
[347645264,1736009438963,-500.0,9.921e-05,2]
[347645266,1736009438973,-500.0,9.921e-05,2]
[347645268,1736009438983,-500.0,9.921e-05,2]
[347645270,1736009438995,-500.0,9.921e-05,2]
[347645272,1736009439007,-150.0,9.922e-05,2]
[347645274,1736009439017,-150.0,9.922e-05,2]
[347645276,1736009439028,-150.0,9.925e-05,2]
[347645278,1736009439038,-150.0,9.928e-05,2]
[347645281,1736009439048,-150.0,9.93e-05,2]
[347645283,1736009439058,-163.227,9.932e-05,2]
[347645285,1736009439068,-2103.409,9.932e-05,2]
[347645287,1736009439079,-150.0,9.932e-05,2]
[347645289,1736009439090,-150.0,9.935e-05,2]
[347645291,1736009439100,-500.0,9.944e-05,2]
[347645293,1736009439110,-500.0,9.944e-05,2]
[347645295,1736009439121,-150.0,9.946e-05,2]
[347645297,1736009439133,-150.0,9.949e-05,2]
[347645299,1736009439143,-150.0,9.949e-05,2]
[347645302,1736009439154,-150.0,9.953e-05,2]
[347645304,1736009439164,-150.0,9.953e-05,2]
[347645306,1736009439175,-150.0,9.956e-05,2]
[347645308,1736009439185,-150.0,9.956e-05,2]
[347645310,1736009439195,-224.30611857,9.96e-05,2]
[347645312,1736009439206,-150.0,9.964e-05,2]
[347645314,1736009439216,-150.0,9.969e-05,2]
[347645316,1736009439226,-500.0,9.972e-05,2]
[347645318,1736009439237,-150.0,9.972e-05,2]
[347645320,1736009439248,-150.0,9.972e-05,2]
[347645322,1736009439260,-150.0,9.973e-05,2]
[347645325,1736009439270,-150.0,9.973e-05,2]
[347645327,1736009439281,-150.0,9.974e-05,2]
[347645329,1736009439291,-150.0,9.985e-05,2]
[347645331,1736009439301,-150.0,9.988e-05,2]
[347645333,1736009439311,-150.0,9.994e-05,2]
[347645335,1736009439322,-150.0,9.997e-05,2]
[347645337,1736009439333,-8113.0714633,9.997e-05,2]
[347645339,1736009439343,-4804.5829661,9.997e-05,2]
[347645341,1736009439354,-150.0,9.998e-05,2]
[347645343,1736009439365,-500.0,9.999e-05,2]
[347645346,1736009439377,-500.0,9.999e-05,2]
[347645349,1736009439387,-500.0,9.999e-05,2]
[347645353,1736009439398,-500.0,9.999e-05,2]
[347645357,1736009439408,-500.0,9.999e-05,2]
[347645359,1736009439419,-500.0,9.999e-05,2]
[347645361,1736009439429,-500.0,9.999e-05,2]
[347645363,1736009439440,-733.22,9.999e-05,2]
[347645365,1736009439449,-500.0,9.999e-05,2]
[347645368,1736009439461,-500.0,9.999e-05,2]
[347645371,1736009439471,-500.0,9.999e-05,2]
[347645373,1736009439481,-500.0,9.999e-05,2]
[347645375,1736009439491,-500.0,9.999e-05,2]
[347645377,1736009439503,-500.0,9.999e-05,2]
[347645379,1736009439514,-766.98,9.999e-05,2]
[347645381,1736009439525,-546.03,9.999e-05,2]
[347645383,1736009439535,-1478.73,9.999e-05,2]
[347645385,1736009439546,-584.42,9.999e-05,2]
[347645387,1736009439556,-500.0,9.999e-05,2]
[347645390,1736009439568,-500.0,9.999e-05,2]
[347645391,1736009439579,-2857671.48585579,0.0001,2]
[347645392,1736009439592,-600.0,0.0001,2]
[347645393,1736009439602,-8924.0,0.0001,2]
[347645394,1736009439613,-1000.0,0.0001,2]
[347645395,1736009439624,-1000.0,0.0001,2]
[347645396,1736009439636,-16752053.86863812,0.0001,2]
[347645444,1736009440126,-2525.11983557,0.0001,2]
[347645446,1736009440137,-50011.37211561,0.0001,2]
[347645449,1736009440149,-431.29103427,0.0001,2]
[347645451,1736009440160,-998.67599932,0.0001,2]
[347645453,1736009440172,-174061.48268762,0.0001,2]
[347645455,1736009440183,-1904.63,0.0001,2]
[347645480,1736009440410,-2695.27245977,0.0001,2]
[347645694,1736009442511,-11131.8141356,0.0001,2]
[347645712,1736009442675,-2342.22702439,0.0001,2]
[347645714,1736009442687,-4722.12305,0.0001,2]
[347645716,1736009442698,-2710.72906,0.0001,2]
[347645988,1736009445420,-500.0,9.999e-05,2]
[347645990,1736009445429,-23869.52228932,0.0001,2]
[347646002,1736009445530,-4890.6618,0.0001,2]
[347647369,1736010297825,177.87,7.056e-05,2]
[347647375,1736010409136,-157.21,7.397e-05,2]
[347647376,1736010409158,-97.17007023,8.219e-05,2]
[347647387,1736010631686,-535.77992977,8.219e-05,2]
[347647388,1736010631696,-250.0,8.567e-05,2]
[347647389,1736010631705,-250.0,8.689e-05,2]
[347647390,1736010631716,-4610.80967001,8.736e-05,2]
[347647391,1736010631743,-765.05354712,8.736e-05,2]
[347647392,1736010631754,-13535.20261958,8.736e-05,2]
[347647393,1736010631801,-2411.6463063,8.736e-05,2]
[347647394,1736010631857,-372.9696363,8.736e-05,2]
[347647395,1736010631869,-973.72974548,8.736e-05,2]
[347647396,1736010631921,-26841.10310868,8.736e-05,2]
[347647397,1736010631937,-200.0,8.736e-05,2]
[347647398,1736010631946,-172.75,8.736e-05,2]
[347647399,1736010631956,-161.16105516,8.736e-05,2]
[347647400,1736010631966,-546.63,8.739e-05,2]
[347647401,1736010631975,-1852.42,8.739e-05,2]
[347647402,1736010631985,-2000.0,8.744e-05,2]
[347647403,1736010631995,-183.6,8.751e-05,2]
[347647404,1736010632005,-23900.0,8.758e-05,2]
[347647405,1736010632016,-1000.0,8.825e-05,2]
[347647406,1736010632027,-250.0,8.834e-05,2]
[347647407,1736010632037,-1250.19,8.872e-05,2]
[347647408,1736010632046,-150.0,9e-05,2]
[347647409,1736010632055,-213.35169761,9e-05,2]
[347647410,1736010632065,-1700.0,9.158e-05,2]
[347647411,1736010632074,-500.0,9.158e-05,2]
[347647412,1736010632083,-156.36149,9.4e-05,2]
[347647413,1736010632093,-652.39,9.5e-05,2]
[347647414,1736010632102,-202.0,9.703e-05,2]
[347647415,1736010632112,-150.0,9.727e-05,2]
[347647416,1736010632121,-150.0,9.73e-05,2]
[347647417,1736010632130,-150.0,9.732e-05,2]
[347647418,1736010632140,-150.0,9.734e-05,2]
[347647419,1736010632149,-150.0,9.736e-05,2]
[347647420,1736010632158,-150.0,9.736e-05,2]
[347647421,1736010632167,-150.0,9.736e-05,2]
[347647422,1736010632177,-150.0,9.737e-05,2]
[347647423,1736010632186,-150.0,9.74e-05,2]
[347647424,1736010632196,-150.0,9.75e-05,2]
[347647426,1736010632205,-150.0,9.756e-05,2]
[347647428,1736010632215,-150.0,9.766e-05,2]
[347647430,1736010632225,-150.0,9.771e-05,2]
[347647432,1736010632234,-150.0,9.771e-05,2]
[347647434,1736010632243,-150.0,9.773e-05,2]
[347647436,1736010632253,-150.0,9.775e-05,2]
[347647438,1736010632262,-150.0,9.779e-05,2]
[347647440,1736010632271,-150.0,9.781e-05,2]
[347647442,1736010632280,-150.0,9.782e-05,2]
[347647444,1736010632289,-150.0,9.787e-05,2]
[347647446,1736010632298,-150.0,9.794e-05,2]
[347647448,1736010632308,-150.0,9.797e-05,2]
[347647450,1736010632317,-150.0,9.799e-05,2]
[347647452,1736010632327,-150.0,9.799e-05,2]
[347647454,1736010632336,-150.0,9.802e-05,2]
[347647456,1736010632345,-1057.0,9.804e-05,2]
[347647458,1736010632355,-161.16105516,9.81e-05,2]
[347647460,1736010632364,-3735.7559,9.81e-05,2]
[347647462,1736010632373,-66057.2014,9.81e-05,2]
[347647464,1736010632382,-2500.0,9.81e-05,2]
[347647465,1736010632391,-150.0,9.816e-05,2]
[347647467,1736010632401,-150.0,9.819e-05,2]
[347647469,1736010632410,-150.0,9.821e-05,2]
[347647471,1736010632419,-150.0,9.822e-05,2]
[347647473,1736010632428,-150.0,9.822e-05,2]
[347647475,1736010632437,-150.0,9.824e-05,2]
[347647477,1736010632446,-150.0,9.829e-05,2]
[347647479,1736010632460,-150.0,9.83e-05,2]
[347647481,1736010632471,-546.63,9.832e-05,2]
[347647483,1736010632480,-150.0,9.833e-05,2]
[347647485,1736010632490,-150.0,9.837e-05,2]
[347647487,1736010632499,-150.0,9.843e-05,2]
[347647489,1736010632508,-150.0,9.845e-05,2]
[347647491,1736010632517,-150.0,9.85e-05,2]
[347647493,1736010632530,-150.0,9.851e-05,2]
[347647495,1736010632540,-150.0,9.853e-05,2]
[347647497,1736010632549,-150.0,9.857e-05,2]
[347647499,1736010632559,-150.0,9.861e-05,2]
[347647501,1736010632568,-150.0,9.861e-05,2]
[347647503,1736010632577,-150.0,9.871e-05,2]
[347647505,1736010632586,-150.0,9.872e-05,2]
[347647507,1736010632596,-150.0,9.875e-05,2]
[347647509,1736010632605,-150.0,9.882e-05,2]
[347647511,1736010632614,-150.0,9.884e-05,2]
[347647513,1736010632623,-150.0,9.885e-05,2]
[347647515,1736010632632,-150.0,9.885e-05,2]
[347647517,1736010632641,-150.0,9.886e-05,2]
[347647519,1736010632650,-150.0,9.893e-05,2]
[347647521,1736010632659,-150.0,9.894e-05,2]
[347647523,1736010632670,-150.0,9.895e-05,2]
[347647525,1736010632680,-150.0,9.895e-05,2]
[347647527,1736010632689,-150.0,9.898e-05,2]
[347647529,1736010632698,-150.0,9.898e-05,2]
[347647531,1736010632707,-4295.5834,9.899e-05,2]
[347647533,1736010632716,-150.0,9.899e-05,2]
[347647535,1736010632726,-150.0,9.899e-05,2]
[347647537,1736010632736,-500.0,9.909e-05,2]
[347647539,1736010632745,-500.0,9.909e-05,2]
[347647541,1736010632754,-500.0,9.909e-05,2]
[347647543,1736010632763,-500.0,9.909e-05,2]
[347647545,1736010632773,-500.0,9.909e-05,2]
[347647547,1736010632782,-584.42,9.909e-05,2]
[347647549,1736010632791,-500.0,9.909e-05,2]
[347647551,1736010632801,-94856.09942475,9.91e-05,2]
[347647553,1736010632810,-150.0,9.91e-05,2]
[347647555,1736010632820,-150.0,9.91e-05,2]
[347647557,1736010632829,-150.0,9.911e-05,2]
[347647559,1736010632838,-2440.503,9.914e-05,2]
[347647561,1736010632847,-163.188,9.914e-05,2]
[347647563,1736010632856,-150.0,9.915e-05,2]
[347647565,1736010632865,-150.0,9.915e-05,2]
[347647567,1736010632875,-150.0,9.92e-05,2]
[347647569,1736010632884,-1000.0,9.928e-05,2]
[347647571,1736010632893,-150.0,9.928e-05,2]
[347647573,1736010632902,-150.0,9.929e-05,2]
[347647575,1736010632912,-150.0,9.93e-05,2]
[347647577,1736010632924,-150.0,9.93e-05,2]
[347647579,1736010632933,-150.0,9.93e-05,2]
[347647581,1736010632942,-150.0,9.931e-05,2]
[347647583,1736010632951,-150.0,9.932e-05,2]
[347647585,1736010632961,-150.0,9.933e-05,2]
[347647587,1736010632970,-150.0,9.937e-05,2]
[347647589,1736010632979,-150.0,9.938e-05,2]
[347647591,1736010632988,-150.0,9.941e-05,2]
[347647593,1736010633000,-150.0,9.943e-05,2]
[347647595,1736010633009,-150.0,9.946e-05,2]
[347647597,1736010633018,-150.0,9.948e-05,2]
[347647599,1736010633029,-150.0,9.948e-05,2]
[347647601,1736010633039,-150.0,9.948e-05,2]
[347647603,1736010633048,-150.0,9.951e-05,2]
[347647605,1736010633058,-150.0,9.951e-05,2]
[347647607,1736010633069,-150.0,9.955e-05,2]
[347647609,1736010633078,-150.0,9.961e-05,2]
[347647611,1736010633088,-150.0,9.963e-05,2]
[347647613,1736010633098,-150.0,9.964e-05,2]
[347647615,1736010633108,-150.0,9.965e-05,2]
[347647617,1736010633119,-150.0,9.969e-05,2]
[347647619,1736010633129,-150.0,9.97e-05,2]
[347647621,1736010633139,-150.0,9.971e-05,2]
[347647623,1736010633149,-500.0,9.972e-05,2]
[347647625,1736010633158,-1478.73,9.972e-05,2]
[347647627,1736010633168,-500.0,9.972e-05,2]
[347647629,1736010633177,-500.0,9.972e-05,2]
[347647631,1736010633187,-500.0,9.972e-05,2]
[347647633,1736010633196,-500.0,9.972e-05,2]
[347647635,1736010633205,-500.0,9.972e-05,2]
[347647637,1736010633215,-500.0,9.972e-05,2]
[347647639,1736010633225,-500.0,9.972e-05,2]
[347647641,1736010633235,-32221.0,9.973e-05,2]
[347647643,1736010633245,-150.0,9.973e-05,2]
[347647645,1736010633255,-150.0,9.974e-05,2]
[347647647,1736010633264,-150.0,9.976e-05,2]
[347647649,1736010633276,-150.0,9.976e-05,2]
[347647651,1736010633287,-150.0,9.976e-05,2]
[347647653,1736010633296,-150.0,9.978e-05,2]
[347647655,1736010633307,-150.0,9.98e-05,2]
[347647657,1736010633318,-150.0,9.981e-05,2]
[347647659,1736010633328,-150.0,9.986e-05,2]
[347647661,1736010633338,-913.0309164,9.997e-05,2]
[347647663,1736010633349,-8289.2228636,9.997e-05,2]
[347647665,1736010633361,-3953.9041052,9.997e-05,2]
[347647667,1736010633371,-500.0,9.999e-05,2]
[347647669,1736010633380,-500.0,9.999e-05,2]
[347647671,1736010633390,-500.0,9.999e-05,2]
[347647673,1736010633399,-500.0,9.999e-05,2]
[347647675,1736010633409,-500.0,9.999e-05,2]
[347647677,1736010633418,-500.0,9.999e-05,2]
[347647679,1736010633428,-500.0,9.999e-05,2]
[347647681,1736010633437,-735.03,9.999e-05,2]
[347647683,1736010633447,-500.0,9.999e-05,2]
[347647685,1736010633457,-546.03,9.999e-05,2]
[347647686,1736010633466,-500.0,9.999e-05,2]
[347647688,1736010633476,-500.0,9.999e-05,2]
[347647690,1736010633486,-476.54,9.999e-05,2]
[347647692,1736010633495,-733.22,9.999e-05,2]
[347647694,1736010633504,-500.0,9.999e-05,2]
[347647696,1736010633514,-500.0,9.999e-05,2]
[347647698,1736010633524,-500.0,9.999e-05,2]
[347647700,1736010633534,-547.24012438,9.999e-05,2]
[347647702,1736010633545,-500.0,9.999e-05,2]
[347647704,1736010633554,-788.45,9.999e-05,2]
[347647706,1736010633564,-371.0684617,9.999e-05,2]
[347647708,1736010633573,-243990.02565773,0.0001,2]
[347647711,1736010633586,-52848.99994854,0.0001,2]
[347647713,1736010633604,-6021.291076,0.0001,2]
[347647715,1736010633615,-55704.54572385,0.0001,2]
[347647720,1736010633653,-150.0,9.85e-05,2]
[347647722,1736010633663,-46296.19410502,0.0001,2]
[347647760,1736010637577,-150.0,9.742e-05,2]
[347647761,1736010637587,-150.0,9.745e-05,2]
[347647762,1736010637596,-150.0,9.748e-05,2]
[347647763,1736010637606,-150.0,9.756e-05,2]
[347647764,1736010637617,-150.0,9.767e-05,2]
[347647765,1736010637626,-150.0,9.771e-05,2]
[347647766,1736010637636,-150.0,9.772e-05,2]
[347647767,1736010637646,-150.0,9.772e-05,2]
[347647768,1736010637657,-150.0,9.782e-05,2]
[347647769,1736010637667,-150.0,9.786e-05,2]
[347647770,1736010637677,-150.0,9.793e-05,2]
[347647771,1736010637688,-150.0,9.797e-05,2]
[347647772,1736010637698,-150.0,9.817e-05,2]
[347647773,1736010637708,-150.0,9.83e-05,2]
[347647774,1736010637718,-150.0,9.834e-05,2]
[347647775,1736010637727,-150.0,9.836e-05,2]
[347647776,1736010637737,-150.0,9.84e-05,2]
[347647777,1736010637746,-150.0,9.848e-05,2]
[347647778,1736010637755,-150.0,9.854e-05,2]
[347647779,1736010637764,-150.0,9.855e-05,2]
[347647780,1736010637773,-150.0,9.86e-05,2]
[347647781,1736010637790,-150.0,9.869e-05,2]
[347647782,1736010637803,-150.0,9.876e-05,2]
[347647783,1736010637813,-150.0,9.887e-05,2]
[347647784,1736010637822,-150.0,9.889e-05,2]
[347647785,1736010637831,-150.0,9.902e-05,2]
[347647786,1736010637841,-150.0,9.905e-05,2]
[347647787,1736010637850,-150.0,9.909e-05,2]
[347647788,1736010637860,-150.0,9.942e-05,2]
[347647789,1736010637870,-150.0,9.944e-05,2]
[347647790,1736010637880,-150.0,9.947e-05,2]
[347647791,1736010637890,-150.0,9.948e-05,2]
[347647792,1736010637899,-150.0,9.956e-05,2]
[347647793,1736010637909,-150.0,9.96e-05,2]
[347647794,1736010637918,-150.0,9.972e-05,2]
[347647795,1736010637932,-150.0,9.976e-05,2]
[347647796,1736010637941,-150.0,9.987e-05,2]
[347647797,1736010637951,-150.0,9.999e-05,2]
[347647798,1736010637960,-4039.2,0.0001,2]
[347647804,1736010638182,-500.72386877,0.0001,2]
[347647805,1736010638196,-283.67037906,0.0001,2]
[347647806,1736010638222,-19724453.4474944,0.0001,2]
[347647807,1736010638237,-108095.55982868,0.0001,2]
[347647808,1736010638249,-5509.92248372,0.0001,2]
[347647811,1736010639697,-3989.37437255,0.0001,2]
[347647812,1736010639811,-3448.70284767,0.0001,2]
[347647813,1736010639823,-1452.21272233,0.0001,2]
[347647814,1736010639835,-17428.54156111,0.0001,2]
[347647815,1736010639867,-390.242268,0.0001,2]
[347647816,1736010639879,-352.87584249,0.0001,2]
[347647817,1736010639934,-3322.214,0.0001,2]
[347647818,1736010639946,-3238.09951093,0.0001,2]
[347647819,1736010639960,-1107.43315,0.0001,2]
[347647820,1736010639971,-6171.68690411,0.0001,2]
[347647821,1736010639982,-4709.3,0.0001,2]
[347647822,1736010639995,-398.89196168,0.0001,2]
[347647823,1736010640006,-257181.50063969,0.0001,2]
[347647824,1736010640017,-2425.69185267,0.0001,2]
[347647825,1736010640028,-525.755001,0.0001,2]
[347647826,1736010640049,-14240.46841869,0.0001,2]
[347647827,1736010640061,-4499.527409,0.0001,2]
[347647829,1736010642741,-60954.3969806,0.0001,2]
[347647830,1736010642752,-987.01,0.0001,2]
[347647831,1736010642850,-56749.94119766,0.0001,2]
[347647832,1736010642862,-13657.0,0.0001,2]
[347647833,1736010642906,-4651.81112628,0.0001,2]
[347647834,1736010642963,-1157.06322351,0.0001,2]
[347647847,1736010645812,-1417.12,9.909e-05,2]
[347647848,1736010645822,-997.39312751,0.0001,2]
[347647849,1736010645866,-1296.05,0.0001,2]
[347647850,1736010645925,-4918.90264871,0.0001,2]
[347647851,1736010645936,-23863.5968064,0.0001,2]
[347647852,1736010645947,-5879.89003373,0.0001,2]
[347647853,1736010664294,181825.662905,6.967e-05,7]
[347647854,1736011156607,-373.6748,8.119e-05,2]
[347647855,1736011156629,-656.81,8.219e-05,2]
[347647856,1736011156650,-570.5152,8.679e-05,2]
[347647859,1736011766148,-157.21,7.397e-05,2]
[347647874,1736011831857,-250.0,8.267e-05,2]
[347647875,1736011831866,-270.41,8.351e-05,2]
[347647876,1736011831880,-2042.9495505,8.351e-05,2]
[347647877,1736011831923,-398.6504495,8.351e-05,2]
[347647878,1736011831932,-3325.03096012,8.519e-05,2]
[347647879,1736011831945,-1976.50493988,8.519e-05,2]
[347647880,1736011831957,-548.49506062,8.553e-05,2]
[347647881,1736011831985,-1195.85493938,8.553e-05,2]
[347647882,1736011831995,-9854.14506062,8.581e-05,2]
[347647883,1736011832046,-506.6,8.581e-05,2]
[347647884,1736011832108,-4254.40002862,8.581e-05,2]
[347647885,1736011832118,-200.0,8.581e-05,2]
[347647886,1736011832127,-23900.0,8.619e-05,2]
[347647887,1736011832136,-200.0,8.647e-05,2]
[347647888,1736011832145,-250.0,8.647e-05,2]
[347647889,1736011832155,-1071.0348,8.679e-05,2]
[347647890,1736011832166,-347.74,8.679e-05,2]
[347647891,1736011832177,-1852.42,8.739e-05,2]
[347647892,1736011832186,-250.0,8.764e-05,2]
[347647893,1736011832195,-1000.0,8.795e-05,2]
[347647894,1736011832204,-175.38,8.939e-05,2]
[347647895,1736011832213,-4072.6044906,9e-05,3]
[347647896,1736011832222,-150.0,9e-05,2]
[347647897,1736011832232,-150.0,9e-05,2]
[347647898,1736011832241,-1068.50745917,9e-05,2]
[347647899,1736011832250,-11310.47576354,9e-05,2]
[347647900,1736011832261,-1500.0,9e-05,3]
[347647901,1736011832272,-3000.0,9.1e-05,3]
[347647902,1736011832283,-1300.0,9.158e-05,2]
[347647903,1736011832292,-4600.0,9.2e-05,3]
[347647904,1736011832301,-6100.0,9.3e-05,3]
[347647905,1736011832310,-7700.0,9.4e-05,3]
[347647906,1736011832322,-631.58,9.5e-05,2]
[347647907,1736011832332,-1500.0,9.5e-05,3]
[347647908,1736011832342,-1500.0,9.6e-05,3]
[347647909,1736011832352,-1000.0,9.7e-05,2]
[347647910,1736011832361,-1500.0,9.7e-05,3]
[347647911,1736011832371,-347.74,9.764e-05,2]
[347647912,1736011832380,-21743.59388738,9.769e-05,2]
[347647913,1736011832399,-1484.80265515,9.769e-05,2]
[347647914,1736011832412,-1378.66431652,9.769e-05,2]
[347647933,1736011837776,-8108.68791628,9.769e-05,2]
[347647934,1736011837838,-1462.07663089,9.769e-05,2]
[347647935,1736011837853,-523.24999839,9.769e-05,2]
[347647936,1736011837953,-2437.3023617,9.769e-05,2]
[347647937,1736011837965,-3822.993,9.769e-05,2]
[347648014,1736011840011,-6071.85665992,9.769e-05,2]
[347648015,1736011840075,-17439.71609368,9.769e-05,2]
[347648016,1736011840164,-96517.8409652,9.769e-05,2]
[347648017,1736011840176,-1448.89257021,9.769e-05,2]
[347648018,1736011841440,-392.94,9.769e-05,2]
[347648036,1736011842856,-2697.17970122,9.769e-05,2]
[347648037,1736011842868,-67508.38209759,9.769e-05,2]
[347648039,1736011842879,-8400.0000004,9.769e-05,2]
[347648041,1736011842889,-687.94347,9.769e-05,2]
[347648042,1736011842921,-1424.68987396,9.769e-05,2]
[347648043,1736011842935,-146905.98328647,9.769e-05,2]
[347648044,1736011842983,-19543.20451504,9.769e-05,2]
[347648045,1736011842993,-12501.1212,9.8e-05,2]
[347648046,1736011843002,-1500.0,9.8e-05,3]